Workbook

Sheet Приложение
E1: Приложение
E2: к стандартам раскрытия информации субъектами оптового и розничных рынков электрической энергии
E3: (в ред. Постановления Правительства РФ от 30.01.2019 № 64)
A5: ПРОГНОЗНЫЕ СВЕДЕНИЯ
A6: о расходах за технологическое присоединение
A7: Акционерное общество "Мурманэнергосбыт" на 2023 год
A8: (наименование сетевой организации)
A10: 1. | B10: Полное наименование | E10: Акционерное общество "Мурманэнергосбыт"
A11: 2. | B11: Сокращённое наименование | E11: АО "МЭС"
A12: 3. | B12: Место нахождения | E12: 183034,г.Мурманск, ул.Свердлова, д.39, корп.1
A13: 4. | B13: Адрес юридического лица | E13: 183034,г.Мурманск, ул.Свердлова, д.39, корп.1
A14: 5. | B14: ИНН | E14: 519 090 71 39
A15: 6. | B15: КПП | E15: 785150001
A16: 7. | B16: Ф.И.О. руководителя | E16: Истомина Алла Павловна
A17: 8. | B17: Адрес электронной почты | E17: info@mures.ru
A18: 9. | B18: Контактный телефон | E18: 8(8152)68-63-26/43-90-13
A19: 10. | B19: Факс | E19: 8(8152)68-63-26/43-90-13

Sheet приложение 1.1
H2: к Методическим указаниям по определению размера платы за технологическое присоединение
H3: (ред к Приказу ФАС России от 30.06.2022 № 490/22)
H4: Приложение № 1
B6: Расходы на строительство введенных в эксплуатацию объектов электросетевого хозяйства для целей технологического присоединения и для целей реализации иных мероприятий инвестиционной программы территориальной сетевой организации за 2019-2021 годы
B7: Наименование территориальной сетевой организации: | D7: Акционерное общество "Мурманэнергосбыт"
B9: № | C9: Объект электросетевого хозяйства | D9: Год ввода объекта | E9: Марка провода (кабеля) / тип подстанции, пункта секционирования, прибора учета | F9: Уровень напряжения, кВ | G9: Протяженность (для линий электропередачи), метров/Количество пунктов секционирования, штук/Количество точек учета, штук | H9: Пропускная способность, кВт / Максимальная мощность, кВт | I9: Расходы на строительство объекта, руб. | J9: Дополнительные сведения | K9: Территория (город/ не город)
B10: 1 | C10: Строительство воздушных линий | I10: =I11+I1795+I3554+I5909 -> 10855722.51
B11: 1.1 | C11: Номинальное напряжение 0,4 кВ и ниже | I11: =I12+I614+I1204 -> 5769883.09
B12: 1.1.1 | C12: Тип опоры - деревянный | I12: =I13+I316 -> 5769883.09
B13: 1.1.1.1 | C13: Тип провода - изолированный | I13: =I14+I86+I174+I251 -> 5769883.09
B14: 1.1.1.1.1 | C14: Материал провода - медный
C15: Cечение провода до 50 кв. мм включительно
C16: Одноцепные
C17: <пообъектная расшифровка>
C21: Двухцепные
C25: Cечение провода от 50 до 100 кв. мм включительно
C26: Одноцепные
C27: <пообъектная расшифровка>
C31: Двухцепные
C35: <пообъектная расшифровка>
C44: Cечение провода от 100 до 200 кв. мм включительно
C45: Одноцепные
C46: <пообъектная расшифровка>
C50: Двухцепные
C54: Cечение провода от 200 до 500 кв. мм включительно
C55: Одноцепные
C56: <пообъектная расшифровка>
C60: Двухцепные
C64: Cечение провода от 500 до 800 кв. мм включительно
C65: Одноцепные
C66: <пообъектная расшифровка>
C70: Двухцепные
C75: Cечение провода свыше 800 кв. мм
C76: Одноцепные
C77: <пообъектная расшифровка>
C81: Двухцепные
B86: 1.1.1.1.2 | C86: Материал провода - сталеалюминиевый | I86: =I87+I122+I133+I143+I153+I163 -> 5769883.09
B87: 1.1.1.1.2.1 | C87: Cечение провода до 50 кв. мм включительно | I87: =I88+I106 -> 4158556.6
B88: 1.1.1.1.2.1.1 | C88: Одноцепные | I88: =SUM(I89:I105) -> 4158556.6
C89: Воздушная линия 0,4 кВ №1 КТПН-8 Ф.1,2 | D89: 2019 | E89: СИП-2 4х50 | F89: 0.4 | G89: 160 | H89: =5+15 -> 20 | I89: =ROUND(496740.38/(160+257)*160,2) -> 190595.83 | J89: Договор №ТП 667/2018 от 08.08.2018 Мальцева А.Г., №ТП 680/2018 от 15.08.2018 Уваров Е.Ф. | K89: город
E90: СИП-4 4х16 | F90: 0.4 | G90: 257 | I90: =496740.38-190595.83 -> 306144.55 | K90: город
C91: Воздушная линия 0,4 кВ №2 КТПН-8 Ф.3,4 | D91: 2019 | E91: СИП-2 4х50 | F91: 0.4 | G91: 312 | I91: =ROUND(531271.79/589*312,2) -> 281420.71 | K91: город
E92: СИП-4 4х16 | F92: 0.4 | G92: 195 | I92: =ROUND(531271.79/589*195,2) -> 175887.94 | K92: город
E93: СИП-4 2х16 | F93: 0.4 | G93: 82 | I93: =531271.79-281420.71-175887.94 -> 73963.14 | K93: город
C94: Воздушная линия ВЛ-0,4кВ | D94: 2019 | E94: СИП-2А 3х25+1х35 | F94: 0.4 | G94: 301 | H94: 9 | I94: 833990 | J94: № ТП-013/2018 от 06.07.2018 Мурманскавтодор | K94: город
C95: Воздушная линия ВЛ 0.4 кВ №3 ТП-64 | D95: 2020 | E95: СИП-4 4х16 | F95: 0.4 | G95: 20 | I95: 32131.99 | J95: №ТП-792/2020 от 05.02.2020 ФЛ Коширова Наталья Викторовна | K95: город
C96: Воздушная линия ВЛ 0,4 кВ Л12/5а | D96: 2020 | E96: СИП-2А 3х50+1х54.6 | F96: 0.4 | G96: 157.5 | H96: 10 | I96: 200522.42 | J96: №ТП-025/2019 от 08.07.2019 ФЛ Гуляев В.А. | K96: город
C97: Воздушная линия изолированная ВЛИ 0.4 кВ Л 12/6 | D97: 2020 | E97: СИП-2 3х50+1х50 | F97: 0.4 | G97: 230 | H97: 5 | I97: 476001.19 | J97: №ТП-040/2019 от 12.09.2019 ФЛ Балыков А.Н. | K97: город
C98: Воздушная линия изолированная ВЛИ 0.4 кВ ОЛИ 12/5в | D98: 2020 | E98: СИП-2 3х50+1х50 | F98: 0.4 | G98: 260 | H98: 5 | I98: 603191.25 | J98: №ТП-042/2019 от 30.09.2019 ФЛ Уракова Н.И. | K98: город
C99: Воздушная линия изолированная ВЛИ 0.4 кВ ОЛИ 37/7-8б | D99: 2020 | E99: СИП-2А 3х50+1х54,6 | F99: 0.4 | G99: 24 | H99: 2 | I99: 55124.91 | J99: №ТП-001/2020 от 10.01.2020 ФЛ Ляхевич А.Г. | K99: город
C100: Воздушная линия изолированная ВЛИ 0.4 кВ ОЛИ Л12/5б | D100: 2020 | E100: СИП-2А 3х50+1х54.6 | F100: 0.4 | G100: 83 | H100: 20 | I100: 129955.43 | J100: №ТП-028/2019 от 07.08.2019 ФЛ Пивкин В.Г. | K100: город
C101: Воздушная линия изолированная ВЛИ 0.4 кВ ОЛ 519/8 | D101: 2020 | E101: СИП-2А 3х35+1х50 | F101: 0.4 | G101: 95 | H101: 20 | I101: 71646.27 | J101: №ТП-004/2020 от 12.03.2020 ФЛ Зейкан И.И | K101: город
C102: Воздушная линия изолированная ВЛИ 0,4 кВ №3 КТПН-8 | D102: 2021 | E102: СИП-4 4х35; СИП-4 4х25; СИП-4 4х16 | F102: 0.4 | G102: 575 | H102: 3 | I102: 613289.7 | J102: №ТП-828/2020 от 21.10.2020 ФЛ Тихомирова Н.П. | K102: город
C103: Воздушная линия изолированная ВЛИ 0,4 кВ №9 РП-2 | D103: 2021 | E103: СИП-4 4х16 | F103: 0.4 | G103: 45 | H103: 10 | I103: 25600 | J103: №ТП-844/2021 от 09.03.2021 ФЛ Хисмятуллова Е.А. | K103: город
C104: Воздушная линия изолированная ВЛИ 0,4 кВ Л-12/5 от оп.20 до ВРУ дачного дома | D104: 2021 | E104: СИП-2А 3х35+1х54,6 | F104: 0.4 | G104: 30 | H104: 5 | I104: 50575.88 | J104: №ТП-026/2020 от 17.08.2020 ФЛ Галимова Т.Г. | K104: город
C105: Воздушная линия изолированная ВЛИ 0,4 кВ №8 КТП-109 н.п.Енский | D105: 2021 | E105: СИП-4 4х16 | F105: 0.4 | G105: 30 | I105: 38515.39 | J105: №ТП-798/2020 от 18.03.2020 ФЛ Анохина Е.М | K105: не город
B106: 1.1.1.1.2.1.2 | C106: Двухцепные
B122: 1.1.1.1.2.2 | C122: Cечение провода от 50 до 100 кв. мм включительно | I122: =I123+I128 -> 1611326.49
B123: 1.1.1.1.2.2.1 | C123: Одноцепные | I123: =SUM(I124:I127) -> 1611326.49
C124: Воздушная линия ВЛ 0.4 кВ №3 ТП-64 | D124: 2020 | E124: СИП-2 3х95+1х95 | F124: 0.4 | G124: 440 | H124: 15 | I124: 706903.83 | J124: №ТП-792/2020 от 05.02.2020 ФЛ Коширова Наталья Викторовна | K124: город
C125: Воздушная линия изолированная ВЛИ 0,4 кВ №8 КТП-109 н.п.Енский | D125: 2021 | E125: СИП-2 3х95+1х95 | F125: 0.4 | G125: 530 | H125: 15 | I125: 680438.59 | J125: №ТП-798/2020 от 18.03.2020 ФЛ Анохина Е.М | K125: не город
C126: Воздушная линия изолированная ВЛИ 0,4 кВ №3 КТПН-8 | D126: 2021 | E126: СИП-2 3х70 | F126: 0.4 | G126: 210 | I126: 223984.07 | J126: №ТП-828/2020 от 21.10.2020 ФЛ Тихомирова Н.П. | K126: город
B128: 1.1.1.1.2.2.2 | C128: Двухцепные
B133: 1.1.1.1.2.3 | C133: Cечение провода от 100 до 200 кв. мм включительно
B134: 1.1.1.1.1.2.14 | C134: Одноцепные
B135: 1.1.1.1.1.2.15 | C135: <пообъектная расшифровка>
B136: 1.1.1.1.1.2.16
B137: 1.1.1.1.1.2.17
B138: 1.1.1.1.1.2.18
B139: 1.1.1.1.1.2.19 | C139: Двухцепные
B140: 1.1.1.1.1.2.20
B141: 1.1.1.1.1.2.21
B142: 1.1.1.1.1.2.22
B143: 1.1.1.1.2.4 | C143: Cечение провода от 200 до 500 кв. мм включительно
B144: 1.1.1.1.1.2.24 | C144: Одноцепные
B145: 1.1.1.1.1.2.25 | C145: <пообъектная расшифровка>
B146: 1.1.1.1.1.2.26
B147: 1.1.1.1.1.2.27
B148: 1.1.1.1.1.2.28
B149: 1.1.1.1.1.2.29 | C149: Двухцепные
B150: 1.1.1.1.1.2.30
B151: 1.1.1.1.1.2.31
B152: 1.1.1.1.1.2.32
B153: 1.1.1.1.2.5 | C153: Cечение провода от 500 до 800 кв. мм включительно
B154: 1.1.1.1.1.2.34 | C154: Одноцепные
B155: 1.1.1.1.1.2.35 | C155: <пообъектная расшифровка>
B156: 1.1.1.1.1.2.36
B157: 1.1.1.1.1.2.37
B158: 1.1.1.1.1.2.38
B159: 1.1.1.1.1.2.39 | C159: Двухцепные
B160: 1.1.1.1.1.2.40
B161: 1.1.1.1.1.2.41
B162: 1.1.1.1.1.2.42
B163: 1.1.1.1.2.6 | C163: Cечение провода свыше 800 кв. мм
C164: Одноцепные
C165: <пообъектная расшифровка>
C169: Двухцепные
B174: 1.1.1.1.3 | C174: Материал провода - стальной
C175: Cечение провода до 50 кв. мм включительно
C176: Одноцепные
C177: <пообъектная расшифровка>
C181: Двухцепные
C197: Cечение провода от 50 до 100 кв. мм включительно
C198: Одноцепные
C199: <пообъектная расшифровка>
C203: Двухцепные
C208: Cечение провода от 100 до 200 кв. мм включительно
C209: Одноцепные
C210: <пообъектная расшифровка>
C214: Двухцепные
C218: Cечение провода от 200 до 500 кв. мм включительно
C219: Одноцепные
C220: <пообъектная расшифровка>
C224: Двухцепные
C229: Cечение провода от 500 до 800 кв. мм включительно
C230: Одноцепные
C231: <пообъектная расшифровка>
C235: Двухцепные
C240: Cечение провода свыше 800 кв. мм
C241: Одноцепные
C242: <пообъектная расшифровка>
C246: Двухцепные
B251: 1.1.1.1.4 | C251: Материал провода - алюминиевый
C252: Cечение провода до 50 кв. мм включительно
C253: Одноцепные
C254: <пообъектная расшифровка>
C258: Двухцепные
C261: Cечение провода от 50 до 100 кв. мм включительно
C262: Одноцепные
C263: <пообъектная расшифровка>
C267: Двухцепные
C272: Cечение провода от 100 до 200 кв. мм включительно
C273: Одноцепные
C274: <пообъектная расшифровка>
C278: Двухцепные
C283: Cечение провода от 200 до 500 кв. мм включительно
C284: Одноцепные
C285: <пообъектная расшифровка>
C289: Двухцепные
C294: Cечение провода от 500 до 800 кв. мм включительно
C295: Одноцепные
C296: <пообъектная расшифровка>
C300: Двухцепные
C305: Cечение провода свыше 800 кв. мм
C306: Одноцепные
C307: <пообъектная расшифровка>
C311: Двухцепные
B316: 1.1.1.2 | C316: Тип провода - неизолированный
C317: Материал провода - медный
C318: Cечение провода до 50 кв. мм включительно
C319: Одноцепные
C320: <пообъектная расшифровка>
C324: Двухцепные
C328: Cечение провода от 50 до 100 кв. мм включительно
C329: Одноцепные
C330: <пообъектная расшифровка>
C334: Двухцепные
C339: Cечение провода от 100 до 200 кв. мм включительно
C340: Одноцепные
C341: <пообъектная расшифровка>
C345: Двухцепные
C350: Cечение провода от 200 до 500 кв. мм включительно
C351: Одноцепные
C352: <пообъектная расшифровка>
C356: Двухцепные
C361: Cечение провода от 500 до 800 кв. мм включительно
C362: Одноцепные
C363: <пообъектная расшифровка>
C367: Двухцепные
C372: Cечение провода свыше 800 кв. мм
C373: Одноцепные
C374: <пообъектная расшифровка>
C378: Двухцепные
C383: Материал провода - сталеалюминиевый
C384: Cечение провода до 50 кв. мм включительно
C385: Одноцепные
C386: <пообъектная расшифровка>
C390: Двухцепные
C406: Cечение провода от 50 до 100 кв. мм включительно
C407: Одноцепные
C408: <пообъектная расшифровка>
C412: Двухцепные
C417: Cечение провода от 100 до 200 кв. мм включительно
C418: Одноцепные
C419: <пообъектная расшифровка>
C423: Двухцепные
C427: Cечение провода от 200 до 500 кв. мм включительно
C428: Одноцепные
C429: <пообъектная расшифровка>
C433: Двухцепные
C438: Cечение провода от 500 до 800 кв. мм включительно
C439: Одноцепные
C440: <пообъектная расшифровка>
C444: Двухцепные
C449: Cечение провода свыше 800 кв. мм
C450: Одноцепные
C451: <пообъектная расшифровка>
C455: Двухцепные
C460: Материал провода - стальной
C461: Cечение провода до 50 кв. мм включительно
... 16845 more rows

Sheet приложение 2
E1: Приложение № 2
E2: к Методическим указаниям по определению размера платы за технологическое присоединение
E3: (ред к Приказу ФАС России от 30.06.2022 № 490/22)
B4: Расходы на выполнение мероприятий по технологическому присоединению, не связанных со строительством объектов электросетевого хозяйства
B6: Наименование территориальной сетевой организации: | D6: Акционерное общество "Мурманэнергосбыт"
B8: № п/п | C8: Наименование мероприятий | D8: Информация для расчета стандартизированной тарифной ставки С1 | G8: Расходы на одно присоединение (руб. на одно ТП)
D9: Расходы по каждому мероприятию (руб.) | E9: Количество технологических присоединений (шт.) | F9: Объем максимальной мощности (кВт)
B10: 1 | C10: Данные за 2021 год
B11: 1.1 | C11: Подготовка и выдача сетевой организацией технических условий Заявителю | D11: 207250 | E11: 87 | F11: 1203.6 | G11: 2382.183908
B12: 1.2 | C12: Проверка сетевой организацией выполнения технических условий Заявителем: | D12: - | E12: - | F12: - | G12: -
B13: 1.2.1 | C13: Выдача сетевой организацией уведомления об обеспечении сетевой организацией возможности присоединения к электрическим сетям заявителям Заявителям, указанным в абзаце шестом пункта 24 Методических указаний по опрелелению размера платы за технологическое присоединение к электрическим сетям | D13: 628952 | E13: 86 | F13: 1013.6 | G13: 7313.395349
B14: 1.2.2 | C14: Проверка сетевой организацией выполнения технических условий Заявителями, указанными в абзаце седьмом пункта 24 Методических указаний по опрелелению размера платы за технологическое присоединение к электрическим сетям | D14: 3476 | E14: 1 | F14: 190 | G14: 3476
B15: 2 | C15: Данные за 2020 год
B16: 2.1 | C16: Подготовка и выдача сетевой организацией технических условий Заявителю | D16: 157006 | E16: 114 | F16: 1967 | G16: 1377.245614
B17: 2.2 | C17: Проверка сетевой организацией выполнения технических условий Заявителем: | D17: - | E17: - | F17: - | G17: -
B18: 2.2.1 | C18: Выдача сетевой организацией уведомления об обеспечении сетевой организацией возможности присоединения к электрическим сетям заявителям Заявителям, указанным в абзаце шестом пункта 24 Методических указаний по опрелелению размера платы за технологическое присоединение к электрическим сетям | D18: 455873 | E18: 109 | F18: 1215 | G18: 4182.321101
B19: 2.2.2 | C19: Проверка сетевой организацией выполнения технических условий Заявителями, указанными в абзаце седьмом пункта 24 Методических указаний по опрелелению размера платы за технологическое присоединение к электрическим сетям | D19: 23234 | E19: 5 | F19: 752 | G19: 4646.8
B20: 3 | C20: Данные за 2019 год
B21: 3.1 | C21: Подготовка и выдача сетевой организацией технических условий Заявителю | D21: 130807 | E21: 107 | F21: 1311.9 | G21: 1222.495327
B22: 3.2 | C22: Проверка сетевой организацией выполнения технических условий Заявителем: | D22: - | E22: - | F22: - | G22: -
B23: 3.2.1 | C23: Выдача сетевой организацией уведомления об обеспечении сетевой организацией возможности присоединения к электрическим сетям заявителям Заявителям, указанным в абзаце шестом пункта 24 Методических указаний по опрелелению размера платы за технологическое присоединение к электрическим сетям | D23: 420842 | E23: 106 | F23: 1251.9 | G23: 3970.207547
B24: 3.2.2 | C24: Проверка сетевой организацией выполнения технических условий Заявителями, указанными в абзаце седьмом пункта 24 Методических указаний по опрелелению размера платы за технологическое присоединение к электрическим сетям | D24: 6600 | E24: 1 | F24: 60 | G24: 6600
B27: Ульянкова В.В.
B30: Примечание:
B31: 1. Сведения предоставляются за три последних года, по которым имеются отчетные данные.
B32: 2. Расходы на выполнение мероприятий по технологическому присоединению, не связанных со строительством объектов электросетевого хозяйства, определяются в соответствии с данными раздельного учета сетевой организации.
B33: 3. Проверка сетевой организацией выполнения заявителем технических условий выполняется в соответствии с разделом IX Правил технологического присоединения.
B34: 4. Договор между сетевой организацией и заявителями, указанными в пунктах 12(1), 13(2) - 13(5) и 14 Правил технологического присоединения, заключается также в соответствии с разделом X Правил технологического присоединения.

Sheet Пилож.№ 2
C1: Приложение № 2
C2: к стандартам раскрытия информации субъектами оптового и розничных рынков электрической энергии
C3: (в ред. Постановления Правительства РФ от 30.01.2019 № 64)
A5: ИНФОРМАЦИЯ
A6: о фактических средних данных о присоединенных объемах максимальной мощности за 3 предыдущих года по каждому мероприятию
A7: № п/п | B7: Наименование мероприятий | C7: Фактические расходы на строительство подстанций за 3 предыдущих года ( тыс. руб) (без НДС) | D7: Объём мощности, введённой в основные фонды за 3 предыдущих года (кВт)
A9: 1. | B9: Строительство пунктов секционирования (распределительных пунктов) | C9: - | D9: -
A10: 2. | B10: Строительство комплектных трансформаторных подстанций и распределительных трансформаторных подстанций с уровнем напряжения до 35 кВ | C10: 4138.11072 | D10: 1513.4
A11: 3. | B11: Строительство центров питания и подстанций уровнем напряжения 35 кВ и выше | C11: - | D11: -
A13: Исполнитель
A14: В.В.Ульянкова

Sheet Прилож. № 3
D1: Приложение № 3
D2: к стандартам раскрытия информации субъектами оптового и розничных рынков электрической энергии
D3: (в ред. Постановления Правительства РФ от 30.01.2019 № 64)
A5: ИНФОРМАЦИЯ
A6: о фактических средних данных о длине линий электропередачи и об объемах максиальной мощности построенных объектов за 3 предыдущих года по каждому мероприятию
A7: № п/п | B7: Наименование мероприятий | C7: Расходы на строительство воздушных и кабельных линий электропередачи на уровне напряжения, фактически построенных за 3 последние 3 года (тыс. руб) (без НДС) | D7: Длина воздушных и кабельных линий электропередачи на уровне напряжения, фактически построенных за 3 года (км) | E7: Объём максимальной мощности, присоединённой путём строительства воздушных линий или кабельных линий за 3 последние года ( кВт)
A9: 1. | B9: Строительство кабельных линий электропередачи | C9: =C10+C11+C12 -> 12285.459 | D9: =D10+D11+D12 -> 4.626 | E9: =E10+E11+E12 -> 935.5
B10: 0,4 кВ | C10: 7511.346 | D10: 3.1 | E10: 495.5
B11: 1 - 20 кВ | C11: 4774.113 | D11: 1.526 | E11: 440
B12: 35 кВ | C12: 0 | D12: 0 | E12: 0
A13: 2. | B13: Строительство воздушных линий электропередачи: | C13: =C14+C15+C16 -> 10855.722 | D13: =D14+D15+D16 -> 9.747 | E13: =E14+E15+E16 -> 204
B14: 0,4 кВ | C14: 5769.883 | D14: 4.137 | E14: 139
B15: 1 - 20 кВ | C15: 5085.839 | D15: 5.61 | E15: 65
B16: 35 кВ | C16: 0 | D16: 0 | E16: 0
A18: Исполнитель
A19: В.В.Ульянкова

Sheet Прилож. № 4
G1: Приложение № 4
G2: к стандартам раскрытия информации субъектами оптового и розничных рынков электрической энергии
G3: (в ред. Постановления Правительства РФ от 30.01.2019 № 64)
A5: ИНФОРМАЦИЯ
A6: об осуществлении технологического присоединения по договорам, заключенным за текущий год (9 месяцев 2022г)
B7: информация актуальна на 01.10.2022
A8: № п/п | B8: Категория заявителей (с 01.01.2022 по 30.06.2022) | C8: Количество договоров (штук) | F8: Максимальная мощность (кВт) | I8: Стоимость договоров (без НДС) (тыс. руб)
C9: 0,4 кВ | D9: 1 - 20 кВ | E9: 35 кВ и выше | F9: 0,4 кВ | G9: 1 - 20 кВ | H9: 35 кВ и выше | I9: 0,4 кВ | J9: 1 - 20 кВ | K9: 35 кВ и выше
A10: 1. | B10: До 15 кВт - всего | C10: =18+42 -> 60 | D10: - | E10: - | F10: =105.5+251 -> 356.5 | G10: - | H10: - | I10: =15.19961+44.46454 -> 59.66415 | J10: - | K10: -
B11: в том числе льготная категория (*) | C11: =17+38 -> 55 | D11: - | E11: - | F11: =90.5+212 -> 302.5 | G11: - | H11: - | I11: =7.79161+17.41654 -> 25.20815 | J11: - | K11: -
A12: 2. | B12: От 15 до 150 кВт - всего | C12: =0+3 -> 3 | D12: - | E12: - | F12: =0+283 -> 283 | G12: - | H12: - | I12: =0+138.193 -> 138.193 | J12: - | K12: -
B13: в том числе льготная категория (**) | C13: - | D13: - | E13: - | F13: - | G13: - | H13: - | I13: - | J13: - | K13: -
A14: 3. | B14: От 150 до 670 кВт - всего | C14: - | D14: - | E14: - | F14: - | G14: - | H14: - | I14: - | J14: - | K14: -
B15: в том числе по индивидуальному проекту | C15: - | D15: - | E15: - | F15: - | G15: - | H15: - | I15: - | J15: - | K15: -
A16: 4. | B16: От 670кВт до 8900 кВт - всего | C16: - | D16: - | E16: - | F16: - | G16: - | H16: - | I16: - | J16: - | K16: -
B17: в том числе по индивидуальному проекту | C17: - | D17: - | E17: - | F17: - | G17: - | H17: - | I17: - | J17: - | K17: -
A18: 5. | B18: От 8900 кВт - всего | C18: - | D18: - | E18: - | F18: - | G18: - | H18: - | I18: - | J18: - | K18: -
B19: в том числе по индивидуальному проекту | C19: - | D19: - | E19: - | F19: - | G19: - | H19: - | I19: - | J19: - | K19: -
A20: 6. | B20: Объекты генерации | C20: - | D20: - | E20: - | F20: - | G20: - | H20: - | I20: - | J20: - | K20: -
A21: № п/п | B21: Категория заявителей (с 01.07.2022 по 30.09.2022) | C21: Количество договоров (штук) | F21: Максимальная мощность (кВт) | I21: Стоимость договоров (без НДС) (тыс. руб)
C22: 0,4 кВ | D22: 1 - 20 кВ | E22: 35 кВ и выше | F22: 0,4 кВ | G22: 1 - 20 кВ | H22: 35 кВ и выше | I22: 0,4 кВ | J22: 1 - 20 кВ | K22: 35 кВ и выше
A23: 1. | B23: До 15 кВт - всего | C23: =5+4 -> 9 | D23: - | E23: - | F23: =10+9 -> 19 | G23: - | H23: - | I23: =25+22.5 -> 47.5 | J23: - | K23: -
B24: в том числе льготная категория (*) | C24: =5+0 -> 5 | D24: - | E24: - | F24: =10+0 -> 10 | G24: - | H24: - | I24: =25+0 -> 25 | J24: - | K24: -
A25: 2. | B25: От 15 до 150 кВт - всего | C25: - | D25: - | E25: - | F25: - | G25: - | H25: - | I25: - | J25: - | K25: -
B26: в том числе льготная категория (**) | C26: - | D26: - | E26: - | F26: - | G26: - | H26: - | I26: - | J26: - | K26: -
A27: 3. | B27: От 150 до 670 кВт - всего | C27: - | D27: - | E27: - | F27: - | G27: - | H27: - | I27: - | J27: - | K27: -
B28: в том числе по индивидуальному проекту | C28: - | D28: - | E28: - | F28: - | G28: - | H28: - | I28: - | J28: - | K28: -
A29: 4. | B29: От 670кВт до 8900 кВт - всего | C29: - | D29: - | E29: - | F29: - | G29: - | H29: - | I29: - | J29: - | K29: -
B30: в том числе по индивидуальному проекту | C30: - | D30: - | E30: - | F30: - | G30: - | H30: - | I30: - | J30: - | K30: -
A31: 5. | B31: От 8900 кВт - всего | C31: - | D31: - | E31: - | F31: - | G31: - | H31: - | I31: - | J31: - | K31: -
B32: в том числе по индивидуальному проекту | C32: - | D32: - | E32: - | F32: - | G32: - | H32: - | I32: - | J32: - | K32: -
A33: 6. | B33: Объекты генерации | C33: - | D33: - | E33: - | F33: - | G33: - | H33: - | I33: - | J33: - | K33: -
A35: (*) | B35: Заявители, оплачивающие технологическое присоединение своих энергопринимающих устройств в размере не более 550 рублей.
A36: (**) | B36: Заявители - юридические лица или индивидуальные предприниматели, заключившие договор об осуществлении технологического присоединения по одному источнику электроснабжения энергопринимающих устройств максимальной мощностью свыше 15 и до 150 кВт включительно ( с учётом ранее присоединённоых энергопринимающих устройств), у которых в договоре предусматривается беспроцентная рассрочка платежа за технологическое присоединение в размере 95 процентов платы за технологическое присоединение с условием ежеквартального внесения платы равными долями от общей суммы рассрочки до 3 лет со дня подписания сторонами акта об осуществлении технологического присоединения
A37: Исполнитель
A38: В.В.Ульянкова

Sheet Прилож. № 5
C1: Приложение № 5
C2: к стандартам раскрытия информации субъектами оптового и розничных рынков электрической энергии
C3: (в ред. Постановления Правительства РФ от 30.01.2019 № 64)
A5: ИНФОРМАЦИЯ
A6: о поданных заявках на технологическое присоединение за текущий год (9 месяцев 2022г)
B7: информация актуальна на 01.10.2022
A8: № п/п | B8: Категория заявителей (с 01.01.2022 по 30.06.2022) | C8: Количество заявок (штук) | F8: Максимальная мощность (кВт)
C9: 0,4 кВ | D9: 1 - 20 кВ | E9: 35 кВ и выше | F9: 0,4 кВ | G9: 1 - 20 кВ | H9: 35 кВ и выше
A10: 1. | B10: До 15 кВт - всего | C10: =21+46 -> 67 | D10: - | E10: - | F10: =137.5+269 -> 406.5 | G10: - | H10: -
B11: в том числе льготная категория (*) | C11: =18+41 -> 59 | D11: - | E11: - | F11: =102.5+44 -> 146.5 | G11: - | H11: -
A12: 2. | B12: От 15 до 150 кВт - всего | C12: =1+4 -> 5 | D12: - | E12: - | F12: =25+303 -> 328 | G12: - | H12: -
B13: в том числе льготная категория (**) | C13: - | D13: - | E13: - | F13: - | G13: - | H13: -
A14: 3. | B14: От 150 до 670 кВт - всего | C14: =0+2 -> 2 | D14: - | E14: - | F14: =0+1620 -> 1620 | G14: - | H14: -
B15: в том числе по индивидуальному проекту | C15: - | D15: - | E15: - | F15: - | G15: - | H15: -
A16: 4. | B16: От 670кВт - всего | C16: - | D16: - | E16: - | F16: - | G16: - | H16: -
B17: в том числе по индивидуальному проекту | C17: - | D17: - | E17: - | F17: - | G17: - | H17: -
A18: № п/п | B18: Категория заявителей (с 01.07.2022 по 30.09.2022) | C18: Количество заявок (штук) | F18: Максимальная мощность (кВт)
C19: 0,4 кВ | D19: 1 - 20 кВ | E19: 35 кВ и выше | F19: 0,4 кВ | G19: 1 - 20 кВ | H19: 35 кВ и выше
A20: 1. | B20: До 15 кВт - всего | C20: =10+7 -> 17 | D20: - | E20: - | F20: =44+15 -> 59 | G20: - | H20: -
B21: в том числе льготная категория (*) | C21: =7+0 -> 7 | D21: - | E21: - | F21: =14+0 -> 14 | G21: - | H21: -
A22: 2. | B22: От 15 до 150 кВт - всего | C22: =2+3 -> 5 | D22: - | E22: - | F22: =229.8+13 -> 242.8 | G22: - | H22: -
B23: в том числе льготная категория (**) | C23: - | D23: - | E23: - | F23: - | G23: - | H23: -
A24: 3. | B24: От 150 до 670 кВт - всего | C24: =0+2 -> 2 | D24: - | E24: - | F24: =0+1150 -> 1150 | G24: - | H24: -
B25: в том числе по индивидуальному проекту | C25: - | D25: - | E25: - | F25: - | G25: - | H25: -
A26: 4. | B26: От 670кВт - всего | C26: - | D26: - | E26: - | F26: - | G26: - | H26: -
B27: в том числе по индивидуальному проекту | C27: - | D27: - | E27: - | F27: - | G27: - | H27: -
A29: (*) | B29: Заявители, оплачивающие технологическое присоединение своих энергопринимающих устройств в размере не более 550 рублей.( с 1.07.2022 года - 3000 рублей за 1 кВт)
A30: (**) | B30: Заявители - юридические лица или индивидуальные предприниматели, заключившие договор об осуществлении технологического присоединения по одному источнику электроснабжения энергопринимающих устройств максимальной мощностью свыше 15 и до 150 кВт включительно ( с учётом ранее присоединённоых энергопринимающих устройств), у которых в договоре предусматривается беспроцентная рассрочка платежа за технологическое присоединение в размере 95 процентов платы за технологическое присоединение с условием ежеквартального внесения платы равными долями от общей суммы рассрочки до 3 лет со дня подписания сторонами акта об осуществлении технологического присоединения
A31: Исполнитель
A32: В.В.Ульянкова
